{"text_format":"3","workbook":"xlsx","n_sheets":4,"sheets":["Drumski most","Pesacki most","Uklapanje puta","Rekapitulacija"],"not_rendered":{"comments":1},"read":"whole","date_system":"1900"}

{"sheet":"Drumski most","index":0,"n_rows":366,"n_cols":7,"rows_kept":366,"merged":[[0,0,0,6],[2,0,2,6],[365,0,365,4],[365,5,365,6]]}
["DRUMSKO-PEŠAČKI MOST"]
[]
["PREDMER RADOVA"]
[]
["R. \nbr.","Broj poz.","OPIS","Jed.\nmera","Količina","Jedinična\n cena","Iznos bez PDVa"]
[null,"51_MO_100"," PRIPREMNI   RADOVI "]
[1,null,"Privremena saobraćajna signalizacija "]
[null,null,"Postavljanje odgovarajuće saobraćajne signalizacije i opreme kojom će se obezbediti radovi na sanaciji mosta i izrada Projekta privremene saobraćajne signalizacije"]
[null,null,"Most će biti zatvoren za saobraćaj za sve vreme obavljanja radova osim za vozila za gradilište."]
[null,null,"Obračunava se paušalno.","pauš"]
[2,101,"Geodetski radovi "]
[null,null,"u toku izvođenja radova. Ova pozicija obuhvata neophodna geodetska merenja radi nivelacije elememata kod izrade predviđenih pozicija radova i izradu svih potrebnih Elaborata geodetskih radova za sve izvedene radove (Elaborati potrebni za dobijanje upotrebne dozvole)"]
[null,null,"Obračunava se paušalno.","pauš"]
[null,"51_MO_110","Čišćenje terena "]
[3,111,"Uklanjanje  šuta sa odvozom na gradsku deponiju, raznog otpada, šiblja i granja "]
[null,null,"u zoni krajnjih stubova, na keglama  i ispod mosta celom dužinom."]
[null,null,"Obračunava se paušalno.","pauš"]
[null,113,"Rušenje i uklanjanje kolovoznih  konstrukcija "]
[4,"113.1","Uklanjanje  asfalta sa kolovozne ploče mosta sa odvozom na gradsku deponiju"]
[null,null,"76.25 · 6.4","m2",{"$f":"76.25*6.4","v":{"v":488,"d":"488.00"}}]
[null,"51_MO_120","OSTALI PRIPREMNI RADOVI"]
[6,121,"Uklanjanje hidroizolacije"]
[null,null,"u punoj širini mosta i dužini mosta između dilatacija, prema opisu u tehničkim uslovima. "]
[null,null,"Obračun po m2 uklonjene hidroizolacije I odvoz na gradsku deponiju"]
[null,null,"76.25 · 6.4","m2",{"$f":"76.25*6.4","v":{"v":488,"d":"488.00"}}]
[7,122,"Rušenje i uklanjanje ivičnjaka I odvoz na gradsku deponiju"]
[null,null,"2*(76.25+4.65)"]
[null,null,"Obračun po m1 uklonjenog ivičnjaka","m1",{"$f":"2*(76.25+4.65)","v":{"v":161.8,"d":"161.80"}}]
[8,126,"Uklanjanje betona postojeće ploče za smeštaj slivnika"]
[null," ","6 · 0.25 · 0.6 · 0.4"]
[null,null,"Obračun po m3 obijenog betona.","m3",{"$f":"6*0.25*0.6*0.4","v":0.36}]
[9,127," Uklanjanje / demontaža postojeće dilatacije sa odvozom na gradsku deponiju\n"]
[null,null," na oba kraja mosta u dužini 9.0m "]
[null,null,"2 · 9"]
[null,null,"Obračun je dat po m1 uklonjene dilatacije.","m1",{"$f":"2*9","v":{"v":18,"d":"18.00"}}]
[10,130,"Uklanjanje postojeće pešačke  ograde sa mosta radi reparacije I popravke u radionici"]
[null,null,"2 · 85.6"]
[null,null,"Obračun po m1 uklonjene ograde","m1",{"$f":"2*85.6","v":{"v":171.2,"d":"171.20"}}]
[null,131,"Uklanjanje objekta  ili pojedinih delova objekta"]
[11,"131.1","Rušеnjе cеlоg оbјеktа "]
[null,null,"rušenje pomoćnog objekta ispod mosta\nsa odvozom šuta na gradsku deponiju"]
[null,null,"Obračunava se paušalno.","pauš"]
[12,"131.2","Uklanjanje AB venaca, staze i gredica ograde sa odvozom suta na gradsku deponiju"]
[null,null,"2 · 0.43 · 85.6","m3",{"$f":"2*0.43*85.6","v":{"v":73.616,"d":"73.62"}}]
[null,null,"Rušenje zadnjeg parapeta sa odvozom suta na gradsku deponiju"]
[null,null,"2 · 0.57 · 0.45 · 6.4","m3",{"$f":"2*0.57*0.45*6.4","v":{"v":3.2832000000000003,"d":"3.28"}}]
[null,null,"Rušenje ab maski pored pendela sa odvozom suta na gradsku deponiju"]
[null,null,"1.15 · 0.84 · 0.1","m3",{"$f":"1.15*0.84*0.1","v":{"v":0.09659999999999999,"d":"0.10"}}]
[13,"131.3","Uklanjanje betona štemovanjem prosečne dubine 10cm sa otklanjanjem suta na gradsku deponiju"]
[null,null,"Uklanjanje betona ručno (štemanjem) ili mašinskim putem (pikhamerima do 6kg).  Štemovanjem treba formirati zonu pravilnog geometrijskog oblika bez isklinjavanja. Šut prikupiti, utovariti na kamion i odneti na gradsku deponiju."]
[null,null,"*obalni stubovi"]
[null,null,"( 1 · 0.5+0.5 · 3.5 ) · 0.1 +8 · 0.15 · 0.15","m3",{"$f":"(1*0.5+0.5*3.5)*0.1+8*0.15*0.15","v":{"v":0.405,"d":"0.41"}}]
[14,"131.4","Linijsko uklanjanje betona, prosečne dubine 2cm sa odvozom na gradsku deponiju"]
[null,null,"Uklanjanje betona oko korodiralih šipki armature, uključujući i zone sa ispucalim betonom, ručno (štemanjem) ili mašinskim putem (pikhamerima do 6kg). Dubina uklonjenog sloja betona zavisi od očuvanosti athezije između armature i betona i od stepena korozije armature. Ukoliko je očuvana athezija i šipka armature delimično zahvaćena korozijom ne „otkriva“ se komplenta šipka, već samo deo gde je vidljiva korozija. Šut prikupiti, utovariti na kamion i odneti na gradsku deponiju. "]
[null,null,"*rečni stubovi"]
[null,null,"4+3","m1",{"$f":"4+3","v":{"v":7,"d":"7.00"}}]
[null,null,"*bočne strane glavnih nosača A, B i C"]
[null,null,"45 · 3","m1",{"$f":"45*3","v":{"v":135,"d":"135.00"}}]
[null,null,"*konzolna ploča"]
[null,null,"1· 75 · 2","m1",{"$f":"1*75*2","v":{"v":150,"d":"150.00"}}]
[]
[15,"131.5","Površinsko uklanjanje betona, prosečne dubine 3,5cm"]
[null,null,"Uklanjanje betona sa donje strane glavnih nosača i poprečnih nosača (na celoj dužini u osama 0, T2,  2,  T5 i 3 i na pola dužine u osama T1, T8 i T9) ,  oko korodiralih šipki armature, uključujući i zone sa ispucalim betonom, ručno (štemanjem) ili mašinskim putem (pikhamerima do 6kg). Dubina uklonjenog sloja betona zavisi od očuvanosti athezije između armature i betona i od stepena korozije armature. Šut prikupiti, utovariti na kamion i odneti na gradsku deponiju. Obračun po m2 uklonjenog betona"]
[null,null,"*glavni podužni nosači u osama A, B i C"]
[null,null,"0.4 · 75.4 · 3","m2",{"$f":"0.4*75.4*3","v":{"v":90.48000000000002,"d":"90.48"}}]
[null,null,"*poprečni nosači"]
[null,null,"2 · 2.6 · 0.25 · 2+0.4 · 2.6 · 2 · 3+1.3 · 0.25 · 3","m2",{"$f":"2*2.6*0.25*2+0.4*2.6*2*3+1.3*0.25*3","v":{"v":9.815,"d":"9.82"}}]
[null,null,"*kolovozna ploča sa donje strane"]
[null,null,"4+2+1+1+1+3+2+1+3+2","m2",{"$f":"4+2+1+1+1+3+2+1+3+2","v":{"v":20,"d":"20.00"}}]
[null,null,"*ploča za prijem napona pritisaka"]
[null,null,"4 · 1.25","m2",{"$f":"4*1.25","v":{"v":5,"d":"5.00"}}]
[16,132,"Bušenje otvora u betonu za instalaciju atmosferske kanalizacije"]
[null,null,"Obračun po broju otvora","kom."]
[null,null,"*slivnici u AB kolovoznoj ploči"]
[null,null,2,"kom.",{"v":2,"d":"2.00"}]
[null,null,"*kroz glavni AB nosač (Ø250mm)"]
[null,null,3,"kom.",{"v":3,"d":"3.00"}]
[17,135,"Peskarenje betonskih površina"]
[null,null,"Priprema betonske površine i armature za nanošenje novog betonskog i malterskog sloja ili zaštitnog premaza suvim peskarenjem. Ovim radovima obuhvaćene su sve betonske površine sem donje strane glavnih podužnih nosača. U cenu uračunat sav materijal i rad. Obračun po m2"]
[null,null,"*gornja površina kolovozne ploče"]
[null,null,"8.5 · 76.5","m2",{"$f":"8.5*76.25","v":{"v":648.125,"d":"648.13"}}]
[null,null,"*krila i konzole pešačkih staza"]
[null,null,"4 · 4.65 · 1.55","m2",{"$f":"4*4.65*1.55","v":{"v":28.830000000000002,"d":"28.83"}}]
[null,null,"*parapet oporca"]
[null,null,"2 · 0.5 · 6.4","m2",{"$f":"2*0.5*6.4","v":{"v":6.4,"d":"6.40"}}]
[null,null,"*gornja površina ležišne grede na mestima novih AB kvadera"]
[null,null,"1 · 1.15+2 · 1.1 · 1.15","m2",{"$f":"1*1.15+2*1.1*1.15","v":{"v":3.6799999999999997,"d":"3.68"}}]
[null,null,"*obalni stubovi"]
[null,null,"4 · 8 + 3.5 · 8","m2",{"$f":"4*8+3.5*8","v":{"v":60,"d":"60.00"}}]
[null,null,"*rečni stubovi"]
[null,null,"(5.8 · 6.7 · 2+0.8 · 6.7 · 2)+(5.8· 5.7· 2+0.8 · 5.7 · 2)","m2",{"$f":"(5.8*6.7*2+0.8*6.7*2)+(5.8*5.7*2+0.8*5.7*2)","v":163.68}]
[null,null,"*bočne strane glavnih nosača A, B i C"]
[null,null,"165+172.2+165","m2",{"$f":"165+172.2+165","v":{"v":502.2,"d":"502.20"}}]
[null,null,"*poprečni nosači"]
[null,null,"1.06 · 2.6 · 2 · 2 · 12+2.6 · 0.25 · 2 · 7","m2",{"$f":"1.06*2.6*2*2*12+2.6*0.25*2*7","v":{"v":141.388,"d":"141.39"}}]
[null,null,"*kolovozna ploča sa donje strane"]
[null,null,"5.2 · 2.6 · 16+6.5 · 2.6 · 8","m2",{"$f":"5.2*2.6*16+6.5*2.6*8","v":{"v":351.52000000000004,"d":"351.52"}}]
[null,null,"*ploča za prijem napona pritisaka"]
[null,null,"((( 4.6+3.3) · 0.5 · 1.3 · 2 · 4 + ( 4.1 + 2.8 ) · 0.5 · 1.3 · 2 · 4 ) · 2","m2",{"$f":"((4.6+3.3)*0.5*1.3*2*4+(4.1+2.8)*0.5*1.3*2*4)*2","v":153.92}]
[null,null,"*konzolna ploča"]
[null,null,"75.4 · 1.0305 · 2","m2",{"$f":"75.4*1.0305*2","v":{"v":155.3994,"d":"155.40"}}]
[18,136,"Čišćеnjе pоvršinа vаzduhоm pоd pritiskоm"]
[null,null," sve površine koje se premazuju SN vezom"]
[null,null,"8.5 · 76.25"]
[null,null,"Obračun po m2 .","m2",{"$f":"8.5*76.25","v":{"v":648.125,"d":"648.13"}}]
[19,137,"Čišćenje armature peskarenjem"]
[null,null,"Čišćenje armature glavnih nosača  i dva poprečna nosača u osama T2 i T5, mokrim ili suvim peskarenjem sa donje strane, uz dodatno lokalno čišćenje žičanim četkama, do „metalnog sjaja“.  U cenu uračunat materijal i rad. Obračun po m2"]
[null,null,"*glavni podužni nosači u osama A, B i C"]
[null,null,"75.4 · 0.4 · 3","m2",{"$f":"75.4*0.4*3","v":{"v":90.48000000000002,"d":"90.48"}}]
[null,null,"*poprečni nosači u osama T2 i T5"]
[null,null,"2.6 · 0.25 · 2 · 2","m2",{"$f":"2.6*0.25*2*2","v":{"v":2.6,"d":"2.60"}}]
[20,138,"Pranje betonskih površina vodom pod pritiskom"]
[null,null,"Pranje odštemovanih zona betona i armature od prašine, vodom pod pristiskom (cca 200 bara). Mlaz vode se usmerava pod uglom od 45 stepeni u odnosu na površinu betona, sa razdaljine od 5cm. Obračun po m2 "]
[null,null,"*obalni stubovi"]
[null,null,"4 · 8+3.5 · 8","m2",{"$f":"4*8+3.5*8","v":{"v":60,"d":"60.00"}}]
[null,null,"*rečni stubovi"]
[null,null,"( 5.8 · 6.7 · 2+0.8 · 6.7 · 2 ) + ( 5.8 · 5.7 · 2+0.8 · 5.7 · 2)","m2",{"$f":"(5.8*6.7*2+0.8*6.7*2)+(5.8*5.7*2+0.8*5.7*2)","v":163.68}]
[null,null,"*bočne strane glavnih nosača A, B i C"]
[null,null,"165+172.2+165","m2",{"$f":"165+172.2+165","v":{"v":502.2,"d":"502.20"}}]
[null,null,"*donje strane glavnih nosača A, B i C"]
[null,null,"75.4 · 0.4 · 3","m2",{"$f":"75.4*0.4*3","v":{"v":90.48000000000002,"d":"90.48"}}]
[null,null,"*poprečni nosači"]
[null,null,"1.06 · 2.6 · 2 · 2 · 12+2.6 · 0.25 · 2 · 9","m2",{"$f":"1.06*2.6*2*2*12+2.6*0.25*2*9","v":{"v":143.988,"d":"143.99"}}]
[null,null,"*kolovozna ploča sa donje strane"]
[null,null,"5.2 · 2.6 · 16+6.5 · 2.6 · 8","m2",{"$f":"5.2*2.6*16+6.5*2.6*8","v":{"v":351.52000000000004,"d":"351.52"}}]
[null,null,"*ploča za prijem napona pritisaka"]
[null,null,"((4.6+3.3) · 0.5 · 1.3 · 2 · 4 + ( 4.1+2.8) · 0.5 · 1.3 · 2 · 4 ) · 2","m2",{"$f":"((4.6+3.3)*0.5*1.3*2*4+(4.1+2.8)*0.5*1.3*2*4)*2","v":153.92}]
[null,null,"*konzolna ploča"]
[null,null,"75.4 · 1.0305 · 2","m2",{"$f":"75.4*1.0305*2","v":{"v":155.3994,"d":"155.40"}}]
[21,140,"Premazivanje  betona SN vezom  (stari- novi beton)"]
[null,null,"gornja površina kolovozne ploče"]
[null,null,"8.5 · 76.25"]
[null,null,"Obračun po m2 izvedenih radova.","m2",{"$f":"8.5*76.25","v":{"v":648.125,"d":"648.13"}}]
[22,150,"Rušenje klatna-pendela"]
[null,null,"0.3 · 0.4 · 0.84 · 3"]
[null,null,"Obračun po m3 uklonjenog betona ","m3",{"$f":"0.3*0.4*0.84*3","v":{"v":0.30239999999999995,"d":"0.30"}}]
[23,160,"Izmeštanje  instalacija  "]
[null,null,"*Demontaža i ponovna montaža dva stuba javne rasvete sa svetiljkama, na mostu."]
[null,null,"Obračunava se paušalno.","pauš",{"v":1,"d":"1.00"}]
[{"$nulls":5},"UKUPNO PRIPREMNI RADOVI"]
[]
[null,"51_MO_200","ZEMLJANI RADOVI"]
[24,202,"Iskop zemlje u zaleđini obalnih stubova"]
[null,null,"Iskop materijala II i III kategorije za izgradnju novih prelaznih ploča i šljunčanog klina"]
[null,null,"2 · 6.4 · 3.8 · 4"]
[null,null,"Obračun po m3 iskopa.","m3",{"$f":"2*6.4*4.8*4","v":245.76}]
[25,206,"Izrаdа šlјunčаnоg klinа"]
[null,null,"Nabavka, transport i ugradnja šljunka prirodne mešavine sa zbijanjem do potrebne zbijenosti 70 Mpa najviši sloj"]
[null,null,"2 · 6.4 · 3.8 · 4"]
[null,null,"Obračun po m3 ugrađenog šljunka","m3",{"$f":"2*6.4*3.8*4","v":194.56}]
[{"$nulls":5},"UKUPNO ZEMLJANI RADOVI"]
[]
[null,"51_MO_300","  SKELE I OPLATE"]
[26,301,"Montaža i demontaža viseće skele za sanaciju rasponske konstrukcije mosta"]
[null,null,"Montaža i demontaža viseće skele  za radove u svemu po važećim propisima i merama HTZ-a, prema projektu skele koji obezbeđuje izvođač radova.  Skela mora biti statički stabilna, fiksirana i propisno uzemljena. Koristi se za se vreme trajanja radova na sanaciji rasponske konstrukcije. Za radove iznad železničke pruge obezbediti da deo viseće skele bude mobilan."]
[null,null,"75.4 · 9"]
[null,null,"Obračun po m2 površine pokrivene skelom.","m2",{"$f":"75.4*9","v":{"v":678.6,"d":"678.60"}}]
[27,302,"Montaža i demontaža fasadne skele za sanaciju rasponske konstrukcije mosta"]
[null,null,"Montaža i demontaža metalne fasadne skele  za radove u svemu po važećim propisima i merama HTZ-a.  Skela mora biti statički stabilna, fiksirana i propisno uzemljena. Koristi se za se vreme trajanja radova na sanaciji stubova mosta. "]
[null,null,"4 · 8+3.5 · 8 + ( 5.8 · 6.7 · 2+0.8 · 6.7 · 2) + (5.8 · 5.7 · 2+0.8 · 5.7 · 2 )",{"$nulls":3},{"$f":"SUM(G1)","v":{"v":0,"d":"0.00"}}]
[null,null,"Obračun po m2 vertikalne projekcije površine pokrivene skelom.","m2",{"$f":"4*8+3.5*8+(5.8*6.7*2+0.8*6.7*2)+(5.8*5.7*2+0.8*5.7*2)","v":223.68}]
[{"$nulls":5},"UKUPNO SKELE :"]
[]
[null,"51_MO_500","  R A D O V I    O D   B E T O N A"]
[null,"51_MO_510"," RADOVI OD NEARMIRANOG BETONA"]
[28,512,"Izravnavajući sloj betona ispod prelazne ploče"]
[null,null,"Tampon od nearmiranog betona C12/15(MB 15) d=10 cm. "]
[null,null,"2 · 3.6 · 6.3"]
[null,null,"Obračun po m2  ugrađenog betona.","m2",{"$f":"2*3.6*6.3","v":45.36}]
[29,520,"Izrada prelazne pešačke rampe na bankini \nObračun po m3  ugrađenog betona.\n"]
[null,null,"* kod FAS-a na ulazu","m3",{"v":1,"d":"1.00"}]
[null,null,"**na prilazu mostu","m3",{"$f":"4*4*0.15+1.5*4*0.15","v":{"v":3.3,"d":"3.30"}}]
[null,"51_MO_550"," RADOVI OD ARMIRANOG BETONA"]
[null,552,"Betoniranje prelazne ploče  "]
[null,null,"*ugradnja armiranog betona ploče:                                           C30/37  (MB 35),                                "]
[null,null,"2x6.4"]
[null,null,"Obračun po m3  ugrađenog betona.","m3",{"v":12.8,"d":"12.80"}]
[30,553,"Rаspоnskа  kоnstrukciја  оbјеktа  оd  аrmirаnоg   bеtоnа "]
[null,null,"Dodatna kоlоvоznа plоčа оd аrmirаnоg bеtоnа prеkо postojeće noseće konstrukcije  Beton C35/45"]
[null,null,"76.2*(2 · 1.45 · 0.125+5.6 · 0.1)","m3",{"$f":"76.2*(2*1.45*0.125+5.6*0.1)","v":{"v":70.2945,"d":"70.29"}}]
[null,null,"Obračun po m3  ugrađenog betona."]
[31,554,"Betoniranje pešačkih staza i ivičnih venaca."]
[null,null,"*ugradnja ispune od stirobetona  težine 300kg/m3; 0,18m3/m1. "]
[null,null,"85.6*(0.17+0.18)","m3",{"$f":"85.6*(0.17+0.18)","v":{"v":29.959999999999997,"d":"29.96"}}]
[null,null,"*ugradnja armiranog betona staze:                                           C35/45  (MB 40), V - 6,   M - 150                               "]
[null,null,"85.6*(0.25+0.27)","m3",{"$f":"85.6*(0.25+0.27)","v":{"v":44.512,"d":"44.51"}}]
[null,null,"Obračun po m3  ugrađenog betona."]
[{"$nulls":5},"UKUPNO BETONSKI RADOVI:"]
[]
[null,"51_MO_600","R A D O V I   O D   M E T A L A"]
[32,601,"Nabavka, obrada, i ugradnja armature B500B za elemente konstrukcije mosta."]
[null,null,"Obračun po kg ugrađene armature","kg",{"v":17350,"d":"17350.00"}]
[33,605,"Nabavka i ugradnja novih ležišta"]
[null,null,"zamena pendela  neankerisanim elastomernim ležištima tip1 200*300*63"]
[null,null,"Obračun po kom. ugrađenog  ležišta","kom",{"v":3,"d":"3.00"}]
[34,660,"Nabavka i ugradnja slivnika "]
[null,null,"480*300, nosivosti D400 sa izradom podloge od cementnog maltera za nivelaciju slivnika i ispunom od polimer betona u zoni slivnika."]
[null,null,"Obračun po kom. ugrađenog slivnika","kom",{"v":8,"d":"8.00"}]
[35,670,"Čelične ograde na mostovima prema projektu"]
[null,"670.3.","ostale cevne ili od profila "]
[null,"670.4","Izrada i postavljanje zaštitne mreže i čeličnog parapeta  iznad pruge. Ukupna visina zastitne mreze 2 m, dok je celicni lim visine 50 cm(mereno od dna).Zaštitnu mrežu raditi od \"grifovanog\" pletiva od pocinkovane žice Ø2,5 mm sa okcima 20/20 mm. Na dnu mreže je čelični parapet od lima d=4mm. Mrežu uokviriti flahom ≠30.4 i ugraditi u ram od čeličnih L profila 40.40.5","m1",{"v":12.5,"d":"12.50"}]
[36,672,"Čelične pločice za zavarivanje ograde"]
[null,null,"dimenzija 12x16cm, d=20mm, sa zavarenim ankerima 4Φ12. Stubići ograde su na  2.0m."]
[null,null,"Obračun po komadu pločice. ","kom",{"v":43,"d":"43.00"}]
[{"$nulls":5},"UKUPNO  RADOVI OD METALA:"]
[]
[null,"51_MO_700","ZAVRŠNI I OSTALI RADOVI"]
[37,710,"Postavljanje betonskih ivičnjaka 18/24 (MB 50; M-150; V-6)"]
[null,null,"2 · 85.6"]
[null,null,"Obračun po m' ugrađenih ivičnjaka.","m1",{"$f":"2*85.6","v":{"v":171.2,"d":"171.20"}}]
[38,720," Hidroizolacija gornje površine kolovozne ploče (polimer bitumenskom trakom d=5mm, sa uloškom od poliesterkog filca -prema standardu SRPS U.M3.304:2013; prvo se nanosi bitumenski predhodni premaz (SRPS U.M3.240:1989"]
[null,null,"Obračun po m2 izvedene izolacije."]
[null,null,"76.25 · 8.5 ","m2",{"$f":"76.25*8.5","v":{"v":648.125,"d":"648.13"}}]
[39,730,"Izrada poliuretanskog sloja sa posipom od kvarcnog peska"]
[null,null,"obostranih pešačkih staza u širini 1.55m i ivičnog venca po celoj dužini mosta. (1. sloj prajmer, 2. sloj dvokomponentna PUR smola, 3. sloj -završni dvokomponentna PUR smola koja se koristi kao zaptivni, UV otporni završni sloj koji ne propušta vodu"]
[null,null,"2 · 85.6 · 2.2"]
[null,null,"Obračun po m2 izvedenog premaza","m2",{"$f":"2*85.6*2.2","v":376.64}]
[40,750,"Izrada kolovoznog zastora od asfalt betona debljine 9cm u dva sloja (5+4 cm) AB 8+AB11s"]
[null,null,"5.9 · 76.25"]
[null,null,"Obračun po m2 ugrađenog asfalta.","m2",{"$f":"5.9*76.25","v":{"v":449.875,"d":"449.88"}}]
[41,760,"Ugrađivanje  PVC cevi  u  pešačke  (revizione) staze  prema  projektu"]
[null,null,"1Ø160+4*Ø110+4*Ø160"]
[null,null,"9 · 85.6"]
[null,null,"Obračun po m1 ugrađenih cevi.","m1",{"$f":"9*85.6","v":{"v":770.4,"d":"770.40"}}]
[42,765,"Podužna dilatacija između dva mosta prema detalju iz  projekta"]
[null,null,"Ugrađivanje profilisane, neoprenske kompresovane  gume"]
[null,null,"Obračun po m1 ugrađene gume","m1",76.25]
[null,770,"Izrada i zatvaranje spojnica"]
[43,"770.1","Dilataciona razdelnica na pešačkoj stazi"]
[null,null,"2 · 7 · 1.55","m1",{"$f":"2*7*1.55","v":{"v":21.7,"d":"21.70"}}]
[44,"770.2","Spојnicа uz ivičnjаkе sа gоrnjе strаnе"]
[null,null,"2 · 85.6","m1",{"$f":"2*85.6","v":{"v":171.2,"d":"171.20"}}]
[45,775,"Ugradnja \"Denso\" trake na spoju asfalta i ivičnjaka"]
[null,null,"2 · 85.6"]
[null,null,"Obračun po m' ugrađene trake.","m1",{"$f":"2*85.6","v":{"v":171.2,"d":"171.20"}}]
[46,776,"Ugradnja asfaltnih dilatacija AD-50"]
[null,null,"2 · 9"]
[null,null,2,"m1",{"$f":"2*9","v":{"v":18,"d":"18.00"}}]
[{"$nulls":5},"UKUPNO ZAVRŠNI I OSTALI RADOVI:"]
[]
[null,"51_MO_800"," P O S E B N I  R A D O V I"]
[47,801,"Postavljanje ankera sa zalivanjem rupa eksmalom"]
[null,null,"Ugradnja ankera Ø14 za vezu novoprojektovanog betona sa postojećim elementima na mostu. Rupe za ankere su   Ø18. "]
[null,null,"*na kolovoznoj ploči","kom",{"v":1300,"d":"1300.00"}]
[null,null,"*kvaderi","kom",{"v":150,"d":"150.00"}]
[null,null,"*parapet","kom",{"v":100,"d":"100.00"}]
[null,null,"*krila ","kom",{"v":60,"d":"60.00"}]
[48,802,"Radovi na popravci i na AKZ zaštiti pešačke ograde mosta "]
[null,null,"*popravka postojeće ograde","m1",{"v":137,"d":"137.00"}]
[null,null,"*dodatni rukohvat -prema detalju u projektu","m1",{"v":137,"d":"137.00"}]
[49,825,"Izrada kvadera ispod ležišta od betona MB40"]
[null,null,"0.48 · 1.15 * ( 2 · 1.1 +1)+2 · 0.5 · 0.5 · 0.3"]
[null,null,"Obračun po m3  ugrađenog betona.","m3",{"$f":"0.48*1.15*(2*1.1+1)+2*0.5*0.5*0.3","v":{"v":1.9163999999999999,"d":"1.92"}}]
[null,null,"Izrada ab maski pored kvadera"]
[null,null,"2 · 0.2 · 1.9 · 1.15"]
[null,null,"Obračun po m3  ugrađenog betona.","m3",{"$f":"2*0.2*1.9*1.15","v":{"v":0.8739999999999999,"d":"0.87"}}]
[50,850,"Reprofilacija lokalnih oštećenja obalnih stubova reparaturnim malterom RM1"]
[null,null,"Nabavka reparaturnog  maltera (RM1) i reprofilisanje – popunjavanje lokalnih dubljih oštećenja prosečne dubine 10cm,  na prethodno pripremljenu površinu betona. Reparaturni malter se nanosi ručno, utiskivanjem u sloju debljine do 3cm. Ako je dubina odštemovane zone veća od 3cm, reparaturni malter naneti u više slojeva. Uz ivice elemenata koristiti jednostaranu oplatu. U cenu uračunata nabavka, transport i ugradnja materijala. "]
[null,null,"( 1 · 0.5+0.5 · 3.5) + 8 · 0.225"]
[null,null,"Obračun po m2 malterisane površine.","m2",{"$f":"(1*0.5+0.5*3.5)+8*0.225","v":4.05}]
[51,851,"Postavljanje rabic mreže "]
[null,null,"Nabavka i postavljanje rabic mreže (okca 25x25mm) sa pričvršivanjem za betonsku podlogu ankerima (1kom/m2)."]
[null,null,"*obalni stubovi"]
[null,null,"4 · 8+3.5","m2",{"$f":"4*8+3.5*8","v":{"v":60,"d":"60.00"}}]
[null,null,"*kolovozna ploča (donja strana)"]
[null,null,"5.2 · 2.6 · 7","m2",{"$f":"5.2*2.6*7","v":{"v":94.64000000000001,"d":"94.64"}}]
[52,852,"Malterisanje površine obalnih stubova reparaturnim malterom RM2 debljine 3cm"]
[null,null,"Malterisanje površine betona reparaturnim  malterom (RM2) za izvođenje izravnavajućeg sloja. Reparaturni malter se nanosi mašinskim putem postupkom vlažnog prskanja u sloju prosečne debljine 3cm. Nakon nanošenja maltera, površina se poravnava gletericom ili letvom pomoću vođica i distancera. Po izvođenju radova potrebno je obezbediti odgovarajuću negu. U cenu su uračunati nabavka, transport, spravljanje, mašinsko malterisanje i ručno ravnanje.                                              * obalni stubovi"]
[null,null,"4 · 8+3.5 · 8"]
[null,null,"Obračun po m2 malterisane površine.","m2",{"$f":"4*8+3.5*8","v":{"v":60,"d":"60.00"}}]
[53,853,"Reprofilacija lokalnih oštećenja reparaturnim malterom RM3"]
[null,null,"Nabavka reparaturnog  maltera (RM3) i reprofilisanje – popunjavanje lokalnih dubljih oštećenja  na prethodno pripremljenu površinu betona. Reparaturni malter se nanosi ručno, utiskivanjemm u sloju debljine do 3cm. Ako je dubina odštemovane zone veća od 3cm, reparaturni malter naneti u više slojeva.  Uz ivice elemenata koristiti jednostaranu oplatu. U cenu uračunata nabavka, transport i ugradnja materijala.\nObračun po m2 pokrivene površine."]
[null,null,"*rečni stubovi"]
[null,null,"7 · 0.1","m2",{"$f":"7*0.1","v":{"v":0.7000000000000001,"d":"0.70"}}]
[null,null,"*kolovozna ploča sa donje strane"]
[null,null,"4+2+1+1+1+3+2+1+3+2","m2",{"$f":"4+2+1+1+1+3+2+1+3+2","v":{"v":20,"d":"20.00"}}]
[null,null,"*Ploča za prijem napona pritisaka"]
[null,null,"4 · 1.25","m2",{"$f":"4*1.25","v":{"v":5,"d":"5.00"}}]
[54,854,"Impregnacja betonskih površina sredstvom za impregnaciju IS1"]
[null,null,"Impregnacja betonskih površina sredstvom za impregnaciju IS1 u dva sloja, pomoću četke, valjaka ili opreme za raspršivanje pod niskim pritiskom, u svemu prema uputstvu poizvođača. U cenu uračunata nabavka, transport i ugradnja materijala. Prosečna potrošnja je 0.4kg/m2 (0,2kg/m2 po jednom sloju)\nObračun po m2 pokrivene površine"]
[null,null,"*rečni stubovi"]
[null,null,"5.8 · 6.7 · 2+0.8 · 6.7 · 2+5.8 · 5.7 · 2+0.8 · 5.7 · 2","m2",{"$f":"5.8*6.7*2+0.8*6.7*2+5.8*5.7*2+0.8*5.7*2","v":163.68}]
[null,null,"*kolovozna ploča sa donje strane"]
[null,null,"5.2 · 2.6 · 9+6.5 · 2.6 · 8","m2",{"$f":"5.2*2.6*9+6.5*2.6*8","v":256.88}]
[null,null,"*Ploča za prijem napona pritisaka"]
[null,null,"((4.6+3.3) · 0.5 · 1.3 · 2 · 4+(4.1+2.8) · 0.5 · 1.3 · 2 · 4) · 2","m2",{"$f":"((4.6+3.3)*0.5*1.3*2*4+(4.1+2.8)*0.5*1.3*2*4)*2","v":153.92}]
[55,855,"Nanošenje zaštitnog premaza ZP1 "]
[null,null,"Nanošenje zaštitnog premaza ZP1 pomoću četke, valjaka ili opreme za raspršivanje pod niskim pritiskom u dva sloja, u svemu prema uputstvu poizvođača. U cenu uračunata nabavka , transport i ugradnja materijala. Prosečna potrošnja je  (0.15kg/m2+0.20kg/m2) = 0.35kg/m2. Obračun po m2 pokrivene površine."]
[null,null,"*rečni stubovi"]
[null,null,"5.8 · 6.7 · 2+0.8 · 6.7 · 2+5.8 · 5.7 · 2+0.8 · 5.7 · 2","m2",{"$f":"5.8*6.7*2+0.8*6.7*2+5.8*5.7*2+0.8*5.7*2","v":163.68}]
[null,null,"*kolovozna ploča sa donje strane"]
[null,null,"5.2 · 2.6 · 9+6.5 · 2.6 · 8","m2",{"$f":"5.2*2.6*9+6.5*2.6*8","v":256.88}]
[null,null,"*Ploča za prijem napona pritisaka"]
[null,null,"((4.6+3.3) · 0.5 · 1.3 · 2 · 4+(4.1+2.8) · 0.5 · 1.3 · 2 · 4) · 2","m2",{"$f":"((4.6+3.3)*0.5*1.3*2*4+(4.1+2.8)*0.5*1.3*2*4)*2","v":153.92}]
[56,856,"Zamena korodirale armature glavnih nosača","kg"]
[null,null,"Zamena korodirale armature glavnih podužnih nosača prema tehničkom opisu. Ovom aktivnošću obuhvaćeno  je isecanje  postojećih šipki armature, uzengija i zmijaste armature i nastavljanje šipki podužne armature novom armaturom RØ32 pomoću podvezica RØ19 i L50x50x6 i uzengija zavarivanjem novih šipki RØ10  na preklop. U cenu ulaze nabavka, priprema materijala i rad.\nObračun po kg čelika."]
[null,null,"*RØ32"]
[null,null,"56.7 · 6.47","kg",{"$f":"56.7*6.47","v":{"v":366.849,"d":"366.85"}}]
[null,null,"*RØ19"]
[null,null,"8.9 · 2.29","kg",{"$f":"8.9*2.29","v":{"v":20.381,"d":"20.38"}}]
[null,null,"*RØ10"]
[null,null,"217.5 · 0.64","kg",{"$f":"217.5*0.64","v":{"v":139.20000000000002,"d":"139.20"}}]
[null,null,"*L50x50x6"]
[null,null,"8.93 · 4.47","kg",{"$f":"8.93*4.47","v":{"v":39.9171,"d":"39.92"}}]
[57,857,"Zaštita armature od korozije premazom P1 "]
[null,null,"Premazivanje „otkrivenih“ šipki armature sredstvom za antikorozionu zašitu (premaz P1) i obezbeđenje bolje prionljivosti, nanošenjem četkom u dva sloja, na pripremljenu površinu šipki armature (pocenjena potrošnja 1,5kg/mm/m2 za jedan sloj)\nObračun po m2 premaza.\n"]
[null,null,"*rečni stubovi"]
[null,null,"7 · 0.1","m2",{"$f":"7*0.1","v":{"v":0.7000000000000001,"d":"0.70"}}]
[null,null,"*bočne strane glavnih nosača u osama A, B i C"]
[null,null,"135 · 0.07","m2",{"$f":"135*0.07","v":{"v":9.450000000000001,"d":"9.45"}}]
[null,null,"*donje strane glavnih nosača u osama A, B i C"]
[null,null,"75.4 · 0.4 · 3","m2",{"$f":"75.4*0.4*3","v":{"v":90.48000000000002,"d":"90.48"}}]
[null,null,"*donja strana poprečnih nosača u osama T2 i T5 i lokalne zone na ostalim poprečnim nosačima \n"]
[null,null,"(2 · 2.6 · 0.25) · 2+14 · 0.25 · 3 · 2+7 · 0.5 · 3","m2",{"$f":"(2*2.6*0.25)*2+14*0.25*3*2+7*0.5*3","v":{"v":34.1,"d":"34.10"}}]
[null,null,"*kolovozna ploča sa donje strane"]
[null,null,"(4+2+1+1+1+3+2+1+3+2) · 0.5","m2",{"$f":"(4+2+1+1+1+3+2+1+3+2)*0.5","v":{"v":10,"d":"10.00"}}]
[null,null,"*konzolna ploča sa donje strane"]
[null,null,"1 · 75.4 · 2 · 0.05","m2",{"$f":"1*75.4*2*0.05","v":{"v":7.540000000000001,"d":"7.54"}}]
[null,null,"*ploča za prijem napona pritisaka"]
[null,null,"5 · 0.5","m2",{"$f":"5*0.5","v":{"v":2.5,"d":"2.50"}}]
[58,858,"Betoniranje novog zaštitnog sloja i nedostajućih delova preseka betonom pod pritiskom"]
[null,null,"Betoniranje novog zaštitnog sloja i nedostajućih delova preseka glavnih nosača u osama \"A\" i \"C\", samougrađujućim (SCC) dvofrakcijskim (Dmax=8mm) betonom MB40 (beton B1), pod pritiskom. Oplatne ravni moraju biti od panela (nije dozvoljena daščana oplata), dobro zaptivene i pričvršćene kako bi izdržale sva opterećenja koja se javljaju prilikom betoniranja. U cenu ulaze rad, materijal, oprema, oplata, noseća konstrukcija oplate i nega betona. "]
[null,null,"(3.1+4.3+4.3+5.9+5.9+3.2+3.5)*(0.4 · 0.12+2 · 1.185 · 0.035)"]
[null,null,"Obračun po m3 ugrađenog betona.","m3",{"$f":"(3.1+4.3+4.3+5.9+5.9+3.2+3.5)*(0.4*0.12+2*1.185*0.035)","v":{"v":3.9546900000000003,"d":"3.95"}}]
[59,859,"Betoniranje novog zaštitnog sloja i nedostajućih delova preseka nalivanjem"]
[null,null,"Betoniranje novog zaštitnog sloja i nedostajućih delova preseka glavnih nosača i dva sekundarna nosača (nosači u osama T2 i T5) samougrađujućim (SCC) dvofrakcijski (Dmax=8mm) betonom MB40 (beton B1), nalivanjem. Oplatne ravni moraju biti od panela (nije dozoljena daščana oplata). U cenu ulaze rad, materijal, oprema, oplata, noseća konstrukcija oplate i nega betona\n. Obračun po m3 ugrađenog betona."]
[null,null,"*glavni nosači"]
[null,null,"(75.4 · 2-30) · 0.035-52.2 · 0.4 · 0.035+75.4 · 0.035","m3",{"$f":"(75.4*2-30)*0.035-52.2*0.4*0.035+75.4*0.035","v":{"v":6.1362000000000005,"d":"6.14"}}]
[null,null,"*poprečni nosači"]
[null,null,"(0.25 · 0.05+0.15 · 0.035 · 2) · 2.6 · 2 · 2","m3",{"$f":"(0.25*0.05+0.15*0.035*2)*2.6*2*2","v":{"v":0.2392,"d":"0.24"}}]
[60,860,"Izvođenje novog zaštitnog sloja i nedostajućih delova preseka reparaturnim malterom RM3"]
[null,null,"Izvođenje novog zaštitnog sloja i nedostajućih delova preseka reparaturnim malterom (RM3), mašinskim malterisanjem i  lokalna reprofilacija ručnim malterisanjem istim malterom. U cenu ulaze rad, materijal, oplata, noseća konstrukcija oplate i nega matera. \nObračun po m2 omalterisane površine"]
[null,null,"*glavni nosači u osama A, B i C, debljina 3,5cm"]
[null,null,"(2 · 82.4 · 2-30 · 1 · 2)+86.1 · 2+52.2 · 0.4","m2",{"$f":"(2*82.4*2-30*1*2)+86.1*2+52.2*0.4","v":462.68}]
[null,null,"*poprečni nosači, debljina 2,5cm"]
[null,null,"1.06 · 2.6 · 2 · 2 · 12+2.6 · 0.25 · 2 · 7","m2",{"$f":"1.06*2.6*2*2*12+2.6*0.25*2*7","v":{"v":141.388,"d":"141.39"}}]
[null,null,"*kolovozna ploča, debljina 2,5cm"]
[null,null,"5.2 · 2.6 · 7","m2",{"$f":"5.2*2.6*7","v":{"v":94.64000000000001,"d":"94.64"}}]
[null,null,"*konzolna ploča, debljina 2,5 cm"]
[null,null,"75.4 · 1.0305 · 2","m2",{"$f":"75.4*1.0305*2","v":{"v":155.3994,"d":"155.40"}}]
[61,861,"Ojačanje glavnih nosača CFRP laminatima"]
[null,null,"Ojačanje glavnih nosača lepljenjem karbonskih traka površine poprečnog preseka 140mm2. Površinu na koju se nanosi lepak je potrebno prethodno očistiti, odmastiti i otprašiti. U cenu ulaze nabavka i ugradnja lepka i karbonskih traka."]
[null,null,"13.8 · 2+7.5 · 21+8.3 · 1"]
[null,null,"Obračun po m1 karbonske trake","m1",{"$f":"13.8*2+7.5*21+8.3*1","v":{"v":193.4,"d":"193.40"}}]
[62,875,"Dobetoniranje/Betoniranje na licu mesta delova krila, obalnih stubova i prelaznih ploča\nObračun po m3  ugrađenog betona. "]
[null,null,"*dobetoniranje krila i konzola pešačkih staza  d=10cm zbog uklapanja na mostu"]
[null,null,"4 · 4.65 · 1.55 · 0.1","m3",{"$f":"4*4.65*1.55*0.1","v":{"v":2.8830000000000005,"d":"2.88"}}]
[null,null,"*kratki element prelazne ploče i parapet"]
[null,null,"2 · 0.44 · 6.4","m3",{"$f":"2*0.44*6.4","v":{"v":5.632000000000001,"d":"5.63"}}]
[null,null,"*prelazna ploča"]
[null,null,"2 · 1 · 6.4","m3",{"$f":"2*1*6.4","v":{"v":12.8,"d":"12.80"}}]
[63,880,"Nabavka, montaža i demontaža hidrauličkih presa za odizanje konstrukcije prilikom sanacija"]
[null,null,"Potrebne prese su  minimalnog kapaciteta 2 kom od 50 tona i \nod 2 kom od 20 tona"]
[null,null,"Potrebna zauzetost- 3 dana prilikom uklanjanja pendela + 2 dana za postavljanje novih ležišta "]
[]
[null,null,"Obračun po presi / dan","dana",{"v":5,"d":"5.00"}]
[64,890,"Čišćеnје  i  pоprаvkа  kеgli"]
[null,null,"Procenjena površina kegli koju je potrebno presložiti i obložiti ~250m2"]
[null,null,"Obračun po m2 izvršenog rada.","m2",{"v":250,"d":"250.00"}]
[65,891,"Izrada projekta izvedenog stanja"]
[null,null,"Paušalno","pauš"]
[66,893,"Probno opterećenje"]
[null,null,"Paušalno","pauš"]
[{"$nulls":5},"UKUPNO POSEBNI RADOVI:"]
[]
["UKUPNO SVI RADOVI:"]

{"sheet":"Pesacki most","index":1,"n_rows":178,"n_cols":7,"rows_kept":178,"merged":[[0,0,0,6],[1,0,1,6],[77,3,77,6],[104,2,104,3],[104,4,104,5],[177,2,177,4],[177,5,177,6]]}
["PEŠAČKI MOST"]
["PREDMER  RADOVA"]
[]
["R. \nbr.","Broj poz.","OPIS","Jed.\nmera","Količina","Jedinična\n cena","Iznos bez PDVa"]
[null,"51_MO_100"," PRIPREMNI   RADOVI "]
[1,null,"Privremena saobraćajna signalizacija "]
[null,null,"Postavljanje odgovarajuće saobraćajne signalizacije i opreme kojom će se obezbediti radovi na sanaciji mosta i i izrada Projekta privremene saobraćajne signalizacije"]
[null,null,"Most će biti zatvoren za saobraćaj za sve vreme obavljanja radova osim za vozila za gradilište."]
[null,null,"Obračunava se paušalno.","pauš"]
[2,101,"Geodetski radovi "]
[null,null,"u toku izvođenja radova. Ova pozicija obuhvata neophodna geodetska merenja radi nivelacije elememata kod izrade predviđenih pozicija radova i iizradu svih potrebnih Elaborata geodetskih radova za sve izvedene radove (Elaborati potrebni za dobijanje upotrebne dozvole)"]
[null,null,"Obračunava se paušalno.","pauš"]
[null,"51_MO_110","Čišćenje terena "]
[3,111,"Uklanjanje  šuta, raznog otpada, šiblja i granja I odvoz na gradsku deponiju"]
[null,null,"u zoni krajnjih stubova, na keglama  i ispod mosta celom dužinom."]
[null,null,"Obračunava se paušalno.","pauš"]
[null,"51_MO_120","OSTALI PRIPREMNI RADOVI"]
[4,127," Uklanjanje / demontaža postojeće dilatacije I odvoz suta  na gradsku deponiju\n"]
[null,null," na oba kraja mosta u dužini 4.3m "]
[null,null,"2 · 4.3"]
[null,null,"Obračun je dat po m1 uklonjene dilatacije.","m1",{"$f":"2*4.3","v":{"v":8.6,"d":"8.60"}}]
[5,130,"Uklanjanje postojeće pešačke  ograde sa mosta  "]
[null,null,"1 · 85.6"]
[null,null,"Obračun po m uklonjene ograde","m1",{"$f":"1*85.6","v":{"v":85.6,"d":"85.60"}}]
[null,131,"Uklanjanje objekta  ili pojedinih delova objekta"]
[6,"131.2","Uklanjanje  montažnih ploča kolovozne konstrukcije mosta zajedno sa slojem asfalta uz prethodno zasecanje asfalta duž kontakta susednih montažnih AB ploča  I odvoz suta  na gradsku deponiju"]
[null,null,"(0.1+0.02) · 4.3 · 76.2"]
[null,null,"Obračun po m3 uklonjenog betona ","m3",{"$f":"(0.1+0.02)*4.3*76.2","v":{"v":39.3192,"d":"39.32"}}]
[7,"131.3","Uklanjanje betona štemovanjem prosečne dubine 4cm  I odvoz suta  na gradsku deponiju"]
[null,null,"Uklanjanje betona ručno (štemanjem) ili mašinskim putem (pikhamerima do 6kg).  Štemovanjem treba formirati zonu pravilnog geometrijskog oblika bez isklinjavanja. Šut prikupiti, utovariti na kamion i odneti na gradsku deponiju."]
[null,null,"*obalni stubovi"]
[null,null,"(1+0.5+0.5+0.5+0.5+1) · 0.04","m3",{"$f":"(1+0.5+0.5+0.5+0.5+1)*0.04","v":0.16}]
[null,null,"*rečni stub u osi \"2\""]
[null,null,"0.5 · 0.5+0.5 · 0.4 · 0.1 · 0.5","m3",{"$f":"0.5*0.5+0.5*0.4*0.1*0.5","v":0.26}]
[null,null,"*kratki elementi"]
[null,null,"0.171 · 0.8 · 2","m3",{"$f":"0.171*0.8*2","v":{"v":0.2736,"d":"0.27"}}]
[8,"131.4","Uklanjanje betona štemovanjem "]
[null,null,"Uklanjanje betona ručno (štemanjem) ili mašinskim putem (pikhamerima do 6kg).  Štemovanjem treba formirati zonu pravilnog geometrijskog oblika bez isklinjavanja. Šut prikupiti, utovariti na kamion i odneti na gradsku deponiju."]
[null,null,"*rečni stub u osi \"1\""]
[null,null,"0.2 · 0.4 · 3","m3"]
[null,null,"Obračun po m3 uklonjenog betona ","m3",{"$f":"0.2*0.4*3","v":{"v":0.24000000000000005,"d":"0.24"}}]
[9,"131.5","Linijsko uklanjanje betona, prosečne dubine 5cm"]
[null,null,"Uklanjanje betona ručno ili pikhamerima radi formiranja šlica za smeštaj dodatne armature kratkih elemenata dimenzija 4x5cm. Šut prikupiti, utovariti na kamion i odneti na gradsku deponiju. "]
[null,null,"*bočna strana kratkih elemenati na rečnim stubovima"]
[null,null,"4 · 1.81 · 2","m1"]
[null,null,"Obračun po m1 uklonjenog betona ","m1",{"$f":"4*1.81*2","v":14.48}]
[10,135,"Peskarenje betonskih površina"]
[null,null,"Priprema betonske površine i armature za nanošenje novog betonskog i malterskog sloja ili zaštitnog premaza suvim peskarenjem. Ovim radovima obuhvaćene su sve betonske površine sem donje strane glavnih podužnih nosača. U cenu uračunat sav materijal i rad."]
[null,null,"*obalni stubovi"]
[null,null,"4 · 8+3.5 · 8","m2",{"$f":"4*8+3.5*8","v":{"v":60,"d":"60.00"}}]
[null,null,"*rečni stubovi zajedno sa kratkim elementima"]
[null,null,"(1.4 · 2+0.8 · 2) · 7.55 · 2+(1.21 · 2+4.18 · 0.8) · 2","m2",{"$f":"(1.4*2+0.8*2)*7.55*2+(1.21*2+4.18*0.8)*2","v":{"v":77.96799999999999,"d":"77.97"}}]
[11,138,"Pranje betonskih površina vodom pod pritiskom"]
[null,null,"Pranje odštemovanih zona betona i armature od prašine, vodom pod pristiskom (cca 200 bara). Mlaz vode se usmerava pod uglom od 45 stepeni u odnosu na površinu betona, sa razdaljine od 5cm. "]
[null,null,"*obalni stubovi"]
[null,null,"4 · 8+3.5 · 8","m2",{"$f":"4*8+3.5*8","v":{"v":60,"d":"60.00"}}]
[null,null,"*rečni stubovi zajedno sa kratkim elementima"]
[null,null,"(1.4 · 2+0.8 · 2) · 7.55 · 2+(1.21 · 2+4.18 · 0.8) · 2","m2",{"$f":"(1.4*2+0.8*2)*7.55*2+(1.21*2+4.18*0.8)*2","v":{"v":77.96799999999999,"d":"77.97"}}]
[{"$nulls":5},"UKUPNO PRIPREMNI RADOVI"]
[]
[]
[null,"51_MO_300","  SKELE I OPLATE"]
[12,301,"Montaža i demontaža viseće skele za sanaciju rasponske konstrukcije mosta"]
[null,null,"Montaža i demontaža viseće skele  za radove u svemu po važećim propisima i merama HTZ-a, prema projektu skele koji obezbeđuje izvođač radova.  Skela mora biti statički stabilna, fiksirana i propisno uzemljena. Koristi se za se vreme trajanja radova na sanaciji rasponske konstrukcije. Za radove iznad železničke pruge obezbediti da deo viseće skele bude mobilan."]
[null,null,"Obračun po m2 površine pokrivene skelom.","m2",{"$f":"75.2*4.3","v":323.36}]
[13,302,"Montaža i demontaža fasadne skele za sanaciju stubova mosta"]
[null,null,"Montaža i demontaža metalne fasadne skele  za radove u svemu po važećim propisima i merama HTZ-a.  Skela mora biti statički stabilna, fiksirana i propisno uzemljena. Koristi se za se vreme trajanja radova na sanaciji stubova mosta. "]
[null,null,"4.3 · 6+4.3 · 5+(0.8+1.4) · 7.55 · 2 · 2"]
[null,null,"Obračun po m2 površine pokrivene skelom.","m2",{"$f":"4.3*6+4.3*5+(0.8+1.4)*7.55*2*2","v":113.74}]
[14,303,"Montaža i demontaža privremenih oslonaca za sanaciju rasponske konstrukcije pešačkog mosta"]
[null,null,"Jaram postaviti van ose postojećih stubova mosta i osloniti na svoj temelj. Visinu stubova jarma odrediti na licu mesta nakon iskopa i izvođenja temelja za jarmove. Obaveza izvođača je da  prilagodi jaram svojim materijalima i sredstvima tako da zadovolji nosivost od 200kN, te u svemu po važećim propisima i merama HTZ-a. Konstrukcija jarma i  njegovi temelji ne smeju da zadiru u železnički profil.  Jaram se mora obavezno uzemljiti. Koristi se za vreme trajanja radova na sanaciji čelične konstrukcije mosta. Uklanjaju se nakon očvršćavanja betona kolovozne ploče."]
[null,null,"2 jarma ~6.5m +2x~8.5m"]
[null,null,"Procenjena vrednost po jarmu","kom",{"v":4,"d":"4.00"}]
[{"$nulls":5},"UKUPNO SKELE :"]
[]
[null,"51_MO_500","  R A D O V I    O D   B E T O N A"]
[null,"51_MO_510"," RADOVI OD NEARMIRANOG BETONA"]
[null,"51_MO_550"," RADOVI OD ARMIRANOG BETONA"]
[15,553,"Rаspоnskа  kоnstrukciја  оbјеktа  оd  аrmirаnоg   bеtоnа "]
[null,"553.1","Glаvni plоčаsti nоsаč оd аrmirаnоg bеtоnа- spregnuta konstrukcija. d=12cm C35/45( MБ 45) ;   М-150;   М+S=2"]
[null,null,"76.2 · 0.486","m3",{"$f":"76.2*0.486","v":{"v":37.0332,"d":"37.03"}}]
[null,null,"Obračun po m3  ugrađenog betona."]
[16,554,"Betoniranje pešačkih staza i ivičnih venaca."]
[null,null,"Izrada armiranobetonskih parapetnih venaca.\nBeton MB 45 (C35/45);   M-150;   M+S=1;   "]
[null,null,"85.6 · 2 · 0.035","m3",{"$f":"85.6*2*0.035","v":{"v":5.992,"d":"5.99"}}]
[null,null,"Obračun po m3  ugrađenog betona."]
[{"$nulls":5},"UKUPNO BETONSKI RADOVI:"]
[]
[null,"51_MO_600","R A D O V I   O D   M E T A L A"]
[17,601,"Nabavka, obrada, i ugradnja armature B500B za elemente konstrukcije mosta."]
[null,null,"Obračun po kg ugrađene armature","kg",{"v":11143,"d":"11,143.00"}]
[18,602,"Zamena ležišta"]
[null,null,"Uklanjanje postojećih ležišta sa odvoženjem na deponiju","kom",{"v":8,"d":"8.00"}]
[null,null,"zamena čeličnih ležišta neankerisanim elastomernim ležištima tip1 100*150*35- na oporcima 2x2kom","kom",{"v":4,"d":"4.00"}]
[null,null,"zamena čeličnih ležišta neankerisanim elastomernim ležištima tip1 200*250*30- na oporcima 2x2kom","kom",{"v":4,"d":"4.00"}]
[19,630,"200*250*30-na srednjim stubovima 2x2kom"]
[null,null,"usvojeni moždanici d/h=19/80mm"]
[null,null,"Obračun po kom ugrađenih moždanika","kom",{"v":1010,"d":"1010.00"}]
[20,640,"Radovi na ojačanju  čelične konstrukcije"]
[null,null,"Obračun po kg ugrađenog čelika","kg",{"v":5000,"d":"5,000.00"}]
[21,660,"Nabavka i ugradnja slivnika "]
[null,null,"Slivnik Tip S-13 za pešački i biciklistički saobraćaj, ima malu debljinu i težinu"]
[null,null,"Obračun po kom. ugrađenog slivnika","kom",{"v":2,"d":"2.00"}]
[22,670,"Čelične ograde na mostovima prema projektu"]
[null,"670.3.","radovi na popravci I AKZ zastiti pesacke ograde mosta"]
[null,null,"popravka postojece ograde ","m1",85.6]
[null,null,"dodatni rukohvat od profila HOP 100*60*3 sa nastavkom stubica HOP 80*40*3","m1",85.6]
[null,"670.4","Izrada i postavljanje zaštitne mreže i čeličnog parapeta  iznad pruge. Ukupna visina zastitne mreze 2 m, dok je celicni lim visine 50 cm(mereno od dna).Zaštitnu mrežu raditi od \"grifovanog\" pletiva od pocinkovane žice Ø2,5 mm sa okcima 20/20 mm. Na dnu mreže je čelični parapet od lima d=4mm. Mrežu uokviriti flahom ≠30.4 i ugraditi u ram od čeličnih L profila 40.40.5","m1",{"v":12.5,"d":"12.50"}]
[23,672,"Čelične pločice za zavarivanje ograde"]
[null,null,"dimenzija 12x16cm, d=20mm, sa zavarenim ankerima 4Φ12. Stubići ograde su na  2.0m."]
[null,null,"Obračun po komadu pločice. ","kom",{"$f":"2*43","v":{"v":86,"d":"86.00"}}]
[{"$nulls":5},"UKUPNO  RADOVI OD METALA:"]
[]
[null,"51_MO_700","  Z A V R Š N I   I   O S T A L  I    R A D O V I"]
[24,725,"Izrada hidroizolacije kolovozne ploče metil - metakrilatom\n(MMA ).Premaz prajmerom."]
[null,null,"Obračun po m2 gotove izolacije. "]
[null,null,"76.2 · 4.05","m2",{"$f":"76.2*4.05","v":308.61}]
[25,730,"Izrada poliuretanskog sloja sa kvarcnim posipom "]
[null,null,"ploča mosta"]
[null,null,"76.2 · 3.75"]
[null,null,"Obračun po m2 izvedenog premaza.","m2",{"$f":"76.2*3.75","v":285.75}]
[26,740,"Obnova AKZ zaštite mosta"]
[null,null,"Obnova spoljne AKZ zaštite mosta min debljine 250mikrona","m2"]
[null,null,"Obračun po m2 izvedenog premaza.","m2",{"v":615,"d":"615.00"}]
[27,780,"Nabavka i montaža  dilatacionih spojnica\n"]
[null,null,"Ugradnja  MA -60"]
[null,null,"Obračunava se po m1 ugrađene dilatacije","m1",{"$f":"2*4.3","v":{"v":8.6,"d":"8.60"}}]
[28,785,"Izrada ab ispune dilatacije I dobetoniranje parapeta "]
[null,null,"Beton MB 40 (C30/37), V12, M150, M+S=1"]
[null,null,"Obračun po m3  ugrađenog betona.","m3",{"$f":"0.1*4.3","v":0.43}]
[{"$nulls":5},"UKUPNO ZAVRŠNI I OSTALI RADOVI:"]
[]
[null,"51_MO_800"," P O S E B N I  R A D O V I"]
[29,801,"Postavljanje ankera sa zalivanjem rupa ekspandirajućim malterom"]
[null,null,"Ugradnja ankera Ø16 za sanaciju kratkih elemenata stubova. Rupe za ankere su   Ø18. "]
[null,null,"ankeri za sanaciju kratkih elemenata stubova","kom",{"v":24,"d":"24.00"}]
[30,850,"Reprofilacija lokalnih oštećenja obalnih stubova reparaturnim malterom RM1"]
[null,null,"Nabavka reparaturnog  maltera (RM1) i reprofilisanje – popunjavanje lokalnih oštećenja prosečne dubine 4cm,  na prethodno pripremljenu površinu betona. Reparaturni malter se nanosi ručno, utiskivanjem u sloju debljine do 3cm. Ako je dubina odštemovane zone veća od 3cm, reparaturni malter naneti u više slojeva. Uz ivice elemenata koristiti jednostaranu oplatu. U cenu uračunata nabavka, transport i ugradnja materijala.                    \n*obalni stubovi"]
[null,null,"1+0.5+0.5+0.5+0.5+1"]
[null,null,"Obračun po m2 malterisane površine.","m2",{"$f":"1+0.5+0.5+0.5+0.5+1","v":{"v":4,"d":"4.00"}}]
[31,854,"Impregnacja betonskih površina sredstvom za impregnaciju IS1"]
[null,null,"Impregnacja betonskih površina sredstvom za impregnaciju IS1 u dva sloja, pomoću četke, valjaka ili opreme za raspršivanje pod niskim pritiskom, u svemu prema uputstvu poizvođača. U cenu uračunata nabavka, transport i ugradnja materijala. Prosečna potrošnja je 0.4kg/m2 (0,2kg/m2 po jednom sloju)"]
[null,null,"*rečni stubovi"]
[null,null,"(1.4 · 2+0.8 · 2) · 7.55 · 2+(0.6 · 0.3+0.6 · 1) · 2 · 2"]
[null,null,"Obračun po m2 pokrivene površine.","m2",{"$f":"(1.4*2+0.8*2)*7.55*2+(0.6*0.3+0.6*1)*2*2","v":69.56}]
[32,855,"Nanošenje zaštitnog premaza ZP1 "]
[null,null,"Nanošenje zaštitnog premaza ZP1 pomoću četke, valjaka ili opreme za raspršivanje pod niskim pritiskom u dva sloja, u svemu prema uputstvu poizvođača. U cenu uračunata nabavka , transport i ugradnja materijala. Prosečna potrošnja je  (0.15kg/m2+0.20kg/m2) = 0.35kg/m2."]
[null,null,"*obalni stubovi"]
[null,null,"4.3 · 6+4.3 · 5","m2",{"$f":"4.3*6+4.3*5","v":{"v":47.3,"d":"47.30"}}]
[null,null,"*rečni stubovi zajedno sa kratkim elementima"]
[null,null,"(1.4 · 2+0.8 · 2) · 7.55 · 2+(1.21 · 2+4.18 · 0.8) · 2","m2",{"$f":"(1.4*2+0.8*2)*7.55*2+(1.21*2+4.18*0.8)*2","v":{"v":77.96799999999999,"d":"77.97"}}]
[33,855,"Zaštita armature od korozije premazom P1 "]
[null,null,"Premazivanje „otkrivenih“ šipki armature sredstvom za antikorozionu zašitu (premaz P1) i obezbeđenje bolje prionljivosti, nanošenjem četkom u dva sloja, na pripremljenu površinu šipki armature (pocenjena potrošnja 1,5kg/mm/m2 za jedan sloj)"]
[null,null,"*rečni stubovi"]
[null,null,"(0.2+0.4) · 3+0.2 · 0.2","m2",{"$f":"(0.2+0.4)*3+0.2*0.2","v":{"v":1.8400000000000003,"d":"1.84"}}]
[null,null,"*kratki elementi na rečnim stubovima"]
[null,null,"((0.29+0.58) · 0.8 · 2) · 2","m2",{"$f":"((0.29+0.58)*0.8*2)*2","v":{"v":2.784,"d":"2.78"}}]
[34,859,"Betoniranje nedostajućeg delova preseka nalivanjem u oplati"]
[null,null,"Betoniranje nedostajućih delova preseka rečnog stuba u osi \"1\" (odštemovana zona) i kratkih elemenata oba rečna stuba tadi pojačavanja kratkih elemenata, samougrađujućim (SCC) trofrakcijskim (Dmax=16mm) betonom MB40 (beton B2), nalivanjem. Oplatne ravni moraju biti od panela (nije dozoljena daščana oplata). U cenu ulaze rad, materijal, oprema, oplata, noseća konstrukcija oplate i nega betona. "]
[null,null,"*rečni stub u osi \"1\""]
[null,null,"0.2 · 0.4 · 3","m3",{"$f":"0.2*0.4*3","v":{"v":0.24000000000000005,"d":"0.24"}}]
[null,null,"*kratki elementi na rečnim stubovima"]
[null,null,"(0.372 · 0.8+2 · 1.71 · 0.03+4 · 1.81 · 0.06 · 0.01) · 2","m3",{"$f":"(0.372*0.8+2*1.71*0.03+4*1.81*0.06*0.01)*2","v":{"v":0.809088,"d":"0.81"}}]
[35,880,"Nabavka, montaža i demontaža hidrauličkih presa za odizanje konstrukcije prilikom sanacija"]
[null,null,"Potrebna presa je  minimalnog kapaciteta 10 tona - 12kom"]
[null,null,"Potrebna zauzetost- 2 dana prilikom uklanjanja ležišta + 1 dan za postavljanje novih ležišta "]
[]
[null,null,"Obračun po presi / dan","dan",{"v":3,"d":"3.00"}]
[36,890,"Čišćеnје  i  pоprаvkа  kеgli"]
[null,null,"Procenjena površina kegli koju je potrebno presložiti i obložiti ~50m2"]
[null,null,"Obračun po m2 izvršenog rada.","m2",{"v":50,"d":"50.00"}]
[37,891,"Izrada projekta izvedenog stanja"]
[null,null,"Paušalno","pauš"]
[38,893,"Probno opterećenje"]
[null,null,"Paušalno","pauš"]
[{"$nulls":5},"UKUPNO POSEBNI RADOVI:"]
[]
[null,null,"UKUPNO SVI RADOVI:"]

{"sheet":"Uklapanje puta","index":2,"n_rows":19,"n_cols":7,"rows_kept":19,"merged":[[1,0,1,6],[4,0,4,2],[4,3,4,6],[7,0,7,5],[9,0,9,2],[9,3,9,6],[14,0,14,5],[16,0,16,5],[18,0,18,5]]}
[]
["PREDMER RADOVA UKLAPANJA MOSTA U POSTOJEĆE STANJE"]
[]
["R. \nbr.","Broj poz.","OPIS","Jed.\nmera","Količina","Jedinična\n cena","Iznos bez PDV-a"]
["11_GR_100. PRIPREMNI RADOVI"]
[1,"100.1","Skidanje sloja asfalta glodalicom od 0-10cm (prosečno d=5cm) sa direktnim utovarom materijala u kamion i odvozom materijala na deponiju","m2",{"v":207,"d":"207.00"}]
[2,"100.2","Izrada spojnice od specijalne dilatacione trake","m",{"v":46,"d":"46.00"}]
["UKUPNO PRIPREMNI RADOVI:"]
[]
["11_GR_300. KOLOVOZNA KONSTRUKCIJA"]
[3,"300.1","Izrada donjeg nosećeg sloja od DKA 0/63\nP=28m2, V=28m2*0.25cm=7m3","m3",{"v":7,"d":"7.00"}]
[4,"300.2","Izrada donjeg nosećeg sloja od DKA 0/31.5\nP=55m2, V=55m2*0.15cm=8.25m3","m3",8.25]
[5,"300.3","Izrada bitumen.nosivog sloja BNS 22  d = 6cm           P=207m2, V=207m2*0.06cm=12.5m3","m3",12.42]
[6,"300.4","Izrada habajućeg sloja od asfalt betona AB11 d = 4cm                     P=207m2, V=207m2*0.04cm=8.5m3","m3",{"v":8.5,"d":"8.50"}]
["UKUPNO KOLOVOZNA KONSTRUKCIJA:"]
[]
["UKUPNO TRASA:"]
[{"$nulls":6}," "]
["Napomena : Obračun se odnosi na uklapanje oba mosta -  drumski i pešački most"]

{"sheet":"Rekapitulacija","index":3,"n_rows":32,"n_cols":3,"rows_kept":32,"merged":[[1,0,1,2],[5,0,5,2],[15,0,15,2],[25,0,25,2]]}
[]
["REKAPITULACIJA"]
[]
[null,"VRSTA RADOVA","Iznos (RSD)"]
[]
["REKAPITULACIJA PREDMERA I PREDRAČUNA RADOVA ZA DRUMSKI MOST"]
["51_MO_100","PRIPREMNI RADOVI"]
["51_MO_200","ZEMLjANI RADOVI"]
["51_MO_200","SKELE I OPLATE"]
["51_MO_500","RADOVI OD BETONA"]
["51_MO_600","RADOVI OD METALA"]
["51_MO_700","ZAVRŠNI I OSTALI RADOVI"]
["51_MO_800","POSEBNI RADOVI"]
[null,"UKUPNO:"]
[]
["REKAPITULACIJA PREDMERA I PREDRAČUNA RADOVA ZA PEŠAČKI MOST"]
["51_MO_100","PRIPREMNI RADOVI"]
["51_MO_200","ZEMLjANI RADOVI"]
["51_MO_200","SKELE I OPLATE"]
["51_MO_500","RADOVI OD BETONA"]
["51_MO_600","RADOVI OD METALA"]
["51_MO_700","ZAVRŠNI I OSTALI RADOVI"]
["51_MO_800","POSEBNI RADOVI"]
[null,"UKUPNO:"]
[]
["PREDRAČUN RADOVA UKLAPANJA MOSTA U POSTOJEĆE STANJE"]
["11 GR 100","PRIPREMNI RADOVI"]
["11 GR 300","KOLOVOZNA KONSTRUKCIJA "]
[null,"UKUPNO:"]
[]
[null,"UKUPNO (BEZ PDV-A)"]
[null,"UKUPNO (SA PDV-OM)"]